[Event "Mitropa Cup Open 2024"]
[Site "Apolda"]
[Date "2024.02.15"]
[Round "1.1"]
[White "Bluebaum, Matthias"]
[Black "Brunello, Sabino"]
[Result "1/2-1/2"]
[ECO "D26"]
[WhiteElo "2655"]
[BlackElo "2512"]
[Annotator "RC"]
[PlyCount "180"]
[EventDate "2024.02.15"]
[EventType "team-tourn"]
[EventCountry "GER"]
[SourceTitle "playchess.com"]
[Source "ChessBase"]
[SourceQuality "1"]
[WhiteTeam "Germany"]
[BlackTeam "Italy"]
[WhiteTeamCountry "GER"]
[BlackTeamCountry "ITA"]
[TimeControl "40/5400+30:1800+30"]

1. Nf3 {[%emt 0:00:05]} Nf6 {[%emt 0:00:50]} 2. c4 {[%emt 0:00:30]} e6 {[%emt 0:03:58]} 3. Nc3 {[%emt 0:00:33]} d5 {[%emt 0:00:05]} 4. e3 {[%emt 0:00:23]} dxc4 {[%emt 0:19:18]} 5. Bxc4 {[%emt 0:00:52]} c5 {[%emt 0:00:10]} 6. d4 {[%emt 0:01:20]} Nc6 {[%emt 0:00:54]} 7. O-O {[%emt 0:00:29]} a6 {[%emt 0:00:11]} 8. d5 {[%emt 0:01:52]} Na5 {[%emt 0:03:50]} 9. b3 {[%emt 0:00:14]} b5 {[%emt 0:02:14]} 10. Bd3 {[%emt 0:00:41]} exd5 {[%emt 0:04:57]} 11. e4 {[%emt 0:07:20]} dxe4 {[%emt 0:00:32]} 12. Nxe4 {[%emt 0:01:37]} Nxe4 {[%emt 0:01:25]} 13. Bxe4 {[%emt 0:03:30]} Qxd1 {[%emt 0:22:27]} 14. Rxd1 {[%emt 0:00:20]} Bb7 {[%emt 0:00:06]} 15. Bxb7 {[%emt 0:21:28]} Nxb7 {[%emt 0:00:06]} 16. a4 {[%emt 0:08:28]} b4 {[%emt 0:06:38]} 17. Ra2 {[%emt 0:01:28]} Be7 {[%emt 0:12:54]} 18. Re2 {[%emt 0:01:00]} Na5 {[%emt 0:00:58]} 19. Bf4 {[%emt 0:07:00]} Nc6 {[%emt 0:14:43]} 20. Rd6 {[%emt 0:04:03]} Rc8 {[%emt 0:00:15]} 21. g3 {[%emt 0:01:23]} f6 {[%emt 0:01:33]} 22. Ree6 {[%emt 0:02:11]} Nd8 {[%emt 0:00:42]} 23. Re4 {[%emt 0:00:41]} Rc6 {[%emt 0:01:21]} 24. Nd2 {[%emt 0:02:06]} Kf7 {[%emt 0:00:44]} 25. Rd7 {[%emt 0:00:32]} Ne6 {[%emt 0:00:17]} 26. Nc4 {[%emt 0:00:54]} Rd8 {[%emt 0:01:01]} 27. Ra7 {[%emt 0:00:01]} g5 {[%emt 0:01:08]} 28. Na5 {[%emt 0:05:54]} Rcc8 {[%emt 0:00:40]} 29. Rxa6 {[%emt 0:01:15]} Nd4 {[%emt 0:00:29]} 30. Ra7 {[%emt 0:00:16]} gxf4 {[%emt 0:00:33]} 31. Rexe7+ {[%emt 0:01:16]} Kg6 {[%emt 0:00:02]} 32. Rxh7 {[%emt 0:02:35]} Nf3+ {[%emt 0:00:48]} 33. Kg2 {[%emt 0:01:10]} Ng5 {[%emt 0:00:02]} 34. Rhg7+ {[%emt 0:00:29]} Kf5 {[%emt 0:00:10]} 35. Rad7 {[%emt 0:01:57]} f3+ {[%emt 0:01:00]} 36. Kf1 {[%emt 0:00:01]} Ne6 {[%emt 0:00:52]} 37. Rge7 {[%emt 0:00:45]} Rxd7 {[%emt 0:00:32]} 38. Rxd7 {[%emt 0:00:01]} Nd4 {[%emt 0:00:09]} 39. h4 {[%emt 0:10:38]} Ke6 {[%emt 0:00:43]} 40. Ra7 {[%emt 0:00:32]} c4 {[%emt 0:00:41]} 41. Ra6+ {[%emt 0:38:05]} Ke7 {[%emt 0:01:06]} 42. Ra7+ {[%emt 0:00:00]} Ke6 {[%emt 0:04:28]} 43. Ra6+ {[%emt 0:00:00]} Ke7 {[%emt 0:04:53]} 44. Ra7+ {[%emt 0:00:00]} Kf8 {[%emt 0:05:27]} 45. bxc4 {[%emt 0:00:00]} Rb8 {[%emt 0:00:58]} 46. g4 {[%emt 0:00:00]} b3 {[%emt 0:04:50]} 47. Nxb3 {[%emt 0:00:00]} Nxb3 {[%emt 0:00:13]} 48. Kg1 {[%emt 0:00:00]} Nd2 {[%emt 0:00:04]} 49. Ra5 {[%emt 0:00:00]} Rb4 {[%emt 0:02:53]} 50. Kh2 {[%emt 0:00:00]} Rxc4 {[%emt 0:06:21]} 51. Kg3 {[%emt 0:00:00]} Nf1+ {[%emt 0:00:14]} 52. Kxf3 {[%emt 0:00:00]} Nh2+ {[%emt 0:00:03]} 53. Kg3 {[%emt 0:00:00]} Nxg4 {[%emt 0:00:09]} 54. Rf5 {[%emt 0:00:00]} Rxa4 {[%emt 0:02:34]} 55. f3 {[%emt 0:00:00]} Ne3 {[%emt 0:00:32]} 56. Rxf6+ {[%emt 0:00:00]} Kg7 {[%emt 0:00:03]} 57. Rf4 {[%emt 0:00:00]} Ra2 {[%emt 0:00:39]} 58. Re4 {[%emt 0:00:00]} Nf5+ {[%emt 0:00:04]} 59. Kg4 {[%emt 0:00:00]} Kf6 {[%emt 0:00:11]} 60. Rb4 {[%emt 0:00:00]} Rg2+ {[%emt 0:00:19]} 61. Kf4 {[%emt 0:00:00]} Nxh4 {[%emt 0:00:05]} 62. Rb6+ {[%emt 0:00:00]} Ke7 {[%emt 0:00:05]} 63. Rb7+ {[%emt 0:00:00]} Kd6 {[%emt 0:00:05]} 64. Rb6+ {[%emt 0:00:00]} Kc5 {[%emt 0:00:04]} 65. Rb8 {[%emt 0:00:00]} Ng6+ {[%emt 0:00:12]} 66. Ke3 {[%emt 0:00:00]} Ne7 {[%emt 0:00:04]} 67. f4 {[%emt 0:00:00]} Rg3+ {[%emt 0:00:03]} 68. Ke4 {[%emt 0:00:00]} Rg1 {[%emt 0:00:03]} 69. Ra8 {[%emt 0:00:00]} Re1+ {[%emt 0:00:08]} 70. Kf3 {[%emt 0:00:00]} Nd5 {[%emt 0:00:03]} 71. f5 {[%emt 0:00:00]} Kd4 {[%emt 0:00:52]} 72. f6 {[%emt 0:01:25]} Rf1+ {[%emt 0:00:17]} 73. Ke2 {[%emt 0:00:25]} Rxf6 {[%emt 0:00:06]} 74. Rd8 {[%emt 0:00:39]} Rf7 {[%emt 0:00:25]} 75. Ke1 {[%emt 0:00:43]} Ke4 {[%emt 0:00:26]} 76. Ke2 {[%emt 0:00:23]} Ra7 {[%emt 0:00:19]} 77. Re8+ {[%emt 0:00:06]} Kd4 {[%emt 0:00:04]} 78. Rd8 {[%emt 0:00:07]} Rf7 {[%emt 0:00:16]} 79. Ke1 {[%emt 0:00:06]} Rf6 {[%emt 0:00:08]} 80. Ke2 {[%emt 0:00:14]} Rf5 {[%emt 0:00:01]} 81. Rd7 {[%emt 0:00:52]} Ke4 {[%emt 0:00:15]} 82. Rd8 {[%emt 0:00:33]} Nf4+ {[%emt 0:00:10]} 83. Kd2 {[%emt 0:00:06]} Ne6 {[%emt 0:00:03]} 84. Re8 {[%emt 0:00:24]} Re5 {[%emt 0:00:08]} 85. Rh8 {[%emt 0:00:53]} Rd5+ {[%emt 0:00:06]} 86. Kc3 {[%emt 0:00:08]} Rc5+ {[%emt 0:00:04]} 87. Kd2 {[%emt 0:00:16]} Rd5+ {[%emt 0:00:04]} 88. Kc3 {[%emt 0:00:04]} Rd3+ {[%emt 0:00:03]} 89. Kc4 {[%emt 0:00:15]} Rd7 {[%emt 0:00:04]} 90. Kc3 {[%emt 0:00:30]} Rc7+ {[%emt 0:00:14]} 1/2-1/2

[Event "Mitropa Cup Open 2024"]
[Site "Apolda"]
[Date "2024.02.15"]
[Round "1.2"]
[White "David, Alberto"]
[Black "Donchenko, Alexander"]
[Result "1-0"]
[ECO "E42"]
[WhiteElo "2525"]
[BlackElo "2643"]
[Annotator "TA"]
[PlyCount "95"]
[EventDate "2024.02.15"]
[EventType "team-tourn"]
[EventCountry "GER"]
[SourceTitle "playchess.com"]
[Source "ChessBase"]
[SourceQuality "1"]
[WhiteTeam "Italy"]
[BlackTeam "Germany"]
[WhiteTeamCountry "ITA"]
[BlackTeamCountry "GER"]
[TimeControl "40/5400+30:1800+30"]

{[%evp 12,95,31,37,22,6,19,6,12,14,10,8,9,10,12,12,13,0,0,0,0,0,5,-37,-80,-46,-22,-39,-12,-108,-20,-11,-11,-31,-35,-24,0,0,0,0,48,0,0,0,0,0,0,0,0,-124,0,0,0,0,0,0,0,0,0,0,62,32,73,78,47,34,23,8,508,481,497,482,497,493,1021,1021,993,939,2258,2082,29945,12806,29964,29968,29979,29980]} 1. d4 {[%emt 0:00:13]} Nf6 {[%emt 0:00:21]} 2. c4 {[%emt 0:00:12]} e6 {[%emt 0:00:31]} 3. Nc3 {[%emt 0:00:23]} Bb4 {[%emt 0:00:51]} 4. e3 {[%emt 0:00:39]} c5 {[%emt 0:03:49]} 5. Nge2 {[%emt 0:01:45]} d5 {[%emt 0:03:54]} 6. a3 {[%emt 0:04:42]} Ba5 {[%emt 0:00:44]} 7. dxc5 {[%emt 0:11:32]} dxc4 {[%emt 0:00:40]} 8. Qxd8+ {[%emt 0:03:01]} Kxd8 {[%emt 0:09:01]} 9. Bd2 {[%emt 0:03:38]} Nbd7 {[%emt 0:11:59] The position is equal.} 10. Ng3 {[%emt 0:06:46]} Nd5 {[%emt 0:03:18]} 11. Nge4 {[%emt 0:12:09]} Bxc3 {[%emt 0:03:27]} 12. Nxc3 {[%emt 0:20:22]} Nxc5 {[%emt 0:00:55]} 13. Rd1 {[%emt 0:01:55]} Ke7 {[%emt 0:18:29]} 14. Nxd5+ {[%emt 0:18:23]} exd5 {[%emt 0:00:46]} 15. Bb4 {[%emt 0:00:03][%csl LRc5,LRd5]} b6 {[%emt 0:00:12]} 16. Rxd5 {[%emt 0:00:04]} Be6 {[%emt 0:00:39]} 17. Rd4 {[%emt 0:00:29]} (17. Bxc5+ $6 bxc5 18. Rxc5 Rhc8 19. Rxc8 Rxc8 $16) 17... a5 {[%emt 0:03:10]} 18. Bc3 {[%emt 0:00:03]} b5 {[%emt 0:02:51]} 19. Rh4 $1 {[%emt 0:01:32]} f6 {[%emt 0:01:57] Black wants to play ...Rhb8.} 20. Be2 {[%emt 0:01:55] [#]} (20. Rh5 $1 $11 Kd6 21. Be2) 20... h6 {[%emt 0:04:02]} (20... Rhb8 $1 $17 21. Bd1 (21. Rxh7 Kf7 $17) 21... Bf5 (21... Nd3+ 22. Ke2 $17)) 21. Rh5 $11 {[%emt 0:04:36]} Rhc8 {[%emt 0:12:14][%cal Ob5b4]} 22. Bd4 {[%emt 0:03:49]} Nb3 {[%emt 0:08:11] And now ...b4 would win.} 23. Bf3 $1 {[%emt 0:01:33]} (23. Rxb5 $2 Nxd4 24. exd4 Rab8 $19) 23... Nxd4 {[%emt 0:01:59]} 24. Bxa8 {[%emt 0:01:14]} Bf7 {[%emt 0:03:37]} 25. Rh4 {[%emt 0:00:44]} Nf5 {[%emt 0:00:48]} (25... Nb3 $11 {should be considered.} 26. Bf3 Rd8) 26. Rf4 {[%emt 0:00:33]} (26. Re4+ $14 {is more appropriate.} Kd6 27. g4 Nxe3 28. fxe3 Rxa8 29. Ke2 (29. Rd4+ Kc7 $16)) 26... Nd6 $1 {[%emt 0:00:44]} ({Reject} 26... Nxe3 $6 27. Re4+ Be6 28. Rxe3 $16) 27. Bf3 {[%emt 0:00:08]} c3 {[%emt 0:00:12]} 28. bxc3 {[%emt 0:00:46]} Rxc3 {[%emt 0:00:07]} 29. O-O {[%emt 0:00:24]} Rxa3 {[%emt 0:00:59]} 30. Rc1 {[%emt 0:00:58]} (30. Rd1 $11 {keeps the balance.}) 30... Bc4 {[%emt 0:02:38]} (30... b4 $17 {Strongly threatening ...b3.} 31. Rd4 (31. Rc7+ Kd8 $11) 31... Nb5 32. Re4+ Kd6) 31. Rd4 {[%emt 0:00:25]} Rd3 {[%emt 0:00:23]} 32. Rxd3 {[%emt 0:00:24]} Bxd3 {[%emt 0:00:02][%mdl 4096] Endgame. KRB-KBN} 33. Rc7+ {[%emt 0:00:05]} Ke6 {[%emt 0:00:18]} 34. Rxg7 {[%emt 0:01:00]} a4 {[%emt 0:01:21]} 35. Ra7 {[%emt 0:00:18]} Nc4 {[%emt 0:01:23]} (35... Ne4 $1 $11) 36. Bc6 {[%emt 0:00:38]} Ne5 {[%emt 0:00:39]} 37. Be8 {[%emt 0:00:15] aiming for f4.} Kd5 {[%emt 0:00:34]} 38. f4 {[%emt 0:00:37]} Ng4 {[%emt 0:00:43][%cal Od5c5]} 39. Re7 {[%emt 0:01:00] h3 would now be deadly.} f5 $2 {[%emt 0:00:54][%mdl 8192] This costs Black the game.} (39... Bc4 $11 {and Black stays safe.}) 40. h3 $18 {[%emt 0:00:07]} Nf6 {[%emt 0:00:35] Inhibits Rd7+. White must now prevent ...Nxe8.} 41. Re5+ {[%emt 0:30:06]} Kd6 {[%emt 0:03:15] Threatens to win with ...Nxe8.} 42. Bxb5 {[%emt 0:00:00]} Bxb5 {[%emt 0:01:49]} (42... Bc2 $142 43. Bc4 Nd7) 43. Rxb5 {[%emt 0:00:00] KR-KN} Nd5 {[%emt 0:00:02]} 44. Ra5 {[%emt 0:00:00]} Nc3 {[%emt 0:00:05]} 45. g4 {[%emt 0:00:00][%cal Bg2g4,Bg4f5,Bf5f6][%mdl 32]} Kc6 {[%emt 0:00:25]} 46. gxf5 {[%emt 0:00:00] Threatening mate with Ra7.} Kb6 {[%emt 0:00:04]} 47. Ra8 {[%emt 0:00:00]} Kb7 {[%emt 0:00:05] [#]} 48. f6 $1 {[%emt 0:00:00] Weighted Error Value: White=0.15 (very precise) /Black=0.58.  Loses game:     	---       	Black=1      Mistake:       	White=3     	Black=5      Inaccurate:     	White=2     	Black=1      OK:         	White=17    	Black=15     Best:        	White=3     	Black=6      Strong:       	White=2     	Black=1} 1-0

[Event "Mitropa Cup Open 2024"]
[Site "Apolda"]
[Date "2024.02.15"]
[Round "1.3"]
[White "Kollars, Dmitrij"]
[Black "Carnicelli, Valerio"]
[Result "1-0"]
[ECO "B48"]
[WhiteElo "2632"]
[BlackElo "2427"]
[Annotator "TA"]
[PlyCount "61"]
[EventDate "2024.02.15"]
[EventType "team-tourn"]
[EventCountry "GER"]
[SourceTitle "playchess.com"]
[Source "ChessBase"]
[SourceQuality "1"]
[WhiteTeam "Germany"]
[BlackTeam "Italy"]
[WhiteTeamCountry "GER"]
[BlackTeamCountry "ITA"]
[TimeControl "40/5400+30:1800+30"]

{[%evp 16,61,38,0,19,8,9,0,0,0,0,0,0,0,0,0,0,0,5,18,61,57,54,55,285,300,274,264,325,244,245,251,249,247,292,327,366,371,357,338,838,683,661,669,918,912,852,845]} 1. e4 {[%emt 0:00:04]} c5 {[%emt 0:00:05]} 2. Nf3 {[%emt 0:00:09]} e6 {[%emt 0:00:06]} 3. d4 {[%emt 0:00:44]} cxd4 {[%emt 0:00:04]} 4. Nxd4 {[%emt 0:00:04]} Nc6 {[%emt 0:00:05]} 5. Nc3 {[%emt 0:00:27]} Qc7 {[%emt 0:00:08]} 6. Be3 {[%emt 0:01:28]} a6 {[%emt 0:00:08]} 7. Qd2 {[%emt 0:02:45]} Nf6 {[%emt 0:02:09]} 8. O-O-O {[%emt 0:01:03]} b5 {[%emt 0:01:01]} 9. f3 {[%emt 0:01:28]} Be7 {[%emt 0:01:55]} 10. g4 {[%emt 0:02:00]} Nxd4 {[%emt 0:02:46]} 11. Qxd4 {[%emt 0:06:34]} Bb7 {[%emt 0:01:31] The position is equal.} 12. g5 {[%emt 0:06:14]} Nh5 {[%emt 0:00:58]} 13. Kb1 {[%emt 0:03:48]} Rc8 {[%emt 0:02:33] Threatens to win with ...b4.} 14. Qd2 {[%emt 0:08:12]} b4 {[%emt 0:05:58]} 15. Na4 {[%emt 0:04:27][%cal Bc3a4,Ba4b6,Bb6c4,Bc4d6][%mdl 32]} O-O {[%emt 0:17:48]} 16. Bh3 {[%emt 0:02:57][%cal Oh3g4]} (16. Qxd7 $2 Qxc2+ (16... Rfd8 $2 17. Qxc8 Rxc8 18. Bd3 $19) 17. Ka1 Rcd8 $19 (17... Rfd8 $2 18. Bd3 $19) (17... Rfd8 $2 18. Bd3 $19)) 16... Bc6 {[%emt 0:10:07]} 17. Nb6 {[%emt 0:01:45]} Rcd8 {[%emt 0:04:38][%cal Oh5f4]} 18. Bg4 {[%emt 0:03:36]} Nf4 {[%emt 0:10:39][%cal Od7d5]} 19. Nc4 $1 $36 {[%emt 0:08:15][%mdl 2048] White is more active.} Bxg5 {[%emt 0:03:32] [#] This move loses the game for Black.} (19... Bb5 $14) 20. h4 $1 $18 {[%emt 0:03:38]} (20. Qxb4 f5 21. Qc5 d5 $15) 20... Bh6 {[%emt 0:02:26]} 21. Nd6 $1 {[%emt 0:00:17]} (21. Qxb4 Bb5 22. Qd6 Qxc4 $11) 21... f5 {[%emt 0:05:26]} 22. Bxf4 {[%emt 0:02:18]} ({Less strong is} 22. exf5 e5 23. Qxb4 Nd5 $18) 22... Bxf4 {[%emt 0:00:37]} 23. Qxf4 {[%emt 0:00:05]} fxg4 {[%emt 0:00:11]} 24. Qxg4 {[%emt 0:00:07] [#] Strongly threatening Rhg1.} Qa5 {[%emt 0:12:12]} 25. f4 {[%emt 0:02:42] Prevents Qe5. aiming for Rdg1.} Rf6 {[%emt 0:03:31]} 26. h5 {[%emt 0:04:42]} Rdf8 {[%emt 0:10:09]} 27. Rhg1 {[%emt 0:02:37]} g6 {[%emt 0:00:35]} (27... R8f7 28. Rdf1 (28. Nxf7 Rxf7 29. Rde1 h6 $18) 28... Qc5) 28. hxg6 {[%emt 0:02:24] White is clearly winning.} Rxg6 {[%emt 0:00:01]} 29. Qh4 {[%emt 0:01:05]} Qd8 {[%emt 0:02:52]} 30. Rxg6+ {[%emt 0:00:52]} hxg6 {[%emt 0:00:02]} 31. Qh6 {[%emt 0:00:06] Weighted Error Value: White=0.18 (very precise) /Black=0.32.  Loses game:     	---       	Black=1      Mistake:       	---       	Black=1      Inaccurate:     	---       	Black=1      OK:         	White=6     	Black=7      Best:        	White=2     	Black=2      Strong:       	White=3     	---} 1-0

[Event "Mitropa Cup Open 2024"]
[Site "Apolda"]
[Date "2024.02.15"]
[Round "1.4"]
[White "Perossa, Nicolas"]
[Black "Svane, Frederik"]
[Result "0-1"]
[ECO "C54"]
[WhiteElo "2277"]
[BlackElo "2625"]
[Annotator "TA"]
[PlyCount "162"]
[EventDate "2024.02.15"]
[EventType "team-tourn"]
[EventCountry "GER"]
[SourceTitle "playchess.com"]
[Source "ChessBase"]
[SourceQuality "1"]
[WhiteTeam "Italy"]
[BlackTeam "Germany"]
[WhiteTeamCountry "ITA"]
[BlackTeamCountry "GER"]
[TimeControl "40/5400+30:1800+30"]

1. e4 {[%emt 0:00:03]} e5 {[%emt 0:00:06]} 2. Nf3 {[%emt 0:00:07]} Nc6 {[%emt 0:00:05]} 3. Bc4 {[%emt 0:00:17]} Bc5 {[%emt 0:00:11]} 4. O-O {[%emt 0:00:11]} Nf6 {[%emt 0:00:07]} 5. d3 {[%emt 0:00:06]} d6 {[%emt 0:00:35]} 6. c3 {[%emt 0:00:07]} O-O {[%emt 0:00:28]} 7. Re1 {[%emt 0:01:05]} a5 {[%emt 0:00:45] is cutting edge theory. C54: Giuoco Piano: 4 c3 Nf6, main lines with 5 d4 and 5 d3.} 8. h3 {[%emt 0:00:26]} Be6 {[%emt 0:00:12]} 9. Bb5 {[%emt 0:00:54]} Ba7 {[%emt 0:00:07]} 10. Be3 {[%emt 0:07:22]} Bxe3 {[%emt 1:32:54]} 11. Rxe3 {[%emt 0:00:09]} Ne7 {[%emt 0:00:00]} 12. Nbd2 {[%emt 0:03:07]} Ng6 {[%emt 0:00:00]} 13. d4 {[%emt 0:00:22]} h6 $146 {[%emt 0:00:00]} ({Predecessor:} 13... h5 14. Qc2 c6 15. Bf1 a4 16. Ree1 b5 17. b4 axb3 18. axb3 Qc7 19. b4 Rfe8 20. dxe5 Rxa1 21. Rxa1 Nxe5 22. Nxe5 dxe5 {½-½ Svane,R (2641)-Tari,A (2635) POL-chT Ekstraliga 2023 (6.5)}) 14. Bf1 {[%emt 0:02:36]} Re8 {[%emt 0:00:00]} 15. Kh2 {[%emt 0:35:45]} c6 {[%emt 0:00:00]} 16. g3 {[%emt 0:09:03]} Qc7 {[%emt 0:00:00]} 17. c4 {[%emt 0:07:43]} exd4 {[%emt 0:00:00]} 18. Nxd4 {[%emt 0:00:08]} Bd7 {[%emt 0:00:00]} 19. Qc2 {[%emt 0:07:10]} h5 {[%emt 0:00:00]} 20. Bg2 {[%emt 0:03:06]} h4 {[%emt 0:00:00]} 21. Qc3 {[%emt 0:07:09]} Re5 {[%emt 0:00:00]} 22. Rf1 {[%emt 0:06:46]} hxg3+ {[%emt 0:00:00]} 23. fxg3 {[%emt 0:00:01]} Rh5 {[%emt 0:00:00]} 24. Re2 {[%emt 0:07:59]} Re8 {[%emt 0:00:00]} 25. Rxf6 {[%emt 0:00:46]} gxf6 {[%emt 0:00:00]} 26. Qf3 {[%emt 0:00:21]} Rh7 {[%emt 0:00:00]} 27. Qxf6 {[%emt 0:00:16]} Ne5 {[%emt 0:00:00]} 28. Qg5+ {[%emt 0:00:46]} Rg7 {[%emt 0:00:00]} 29. Qf4 {[%emt 0:00:29]} Qd8 {[%emt 0:00:00]} 30. N4f3 {[%emt 0:00:34]} Qb6 {[%emt 0:00:00]} (30... Qe7 $17 31. b3 Ng6) 31. Nf1 $15 {[%emt 0:00:31]} Qc5 {[%emt 0:00:00]} 32. b3 {[%emt 0:00:29]} Nxf3+ {[%emt 0:00:00]} 33. Qxf3 {[%emt 0:00:10]} Qe5 {[%emt 0:00:00]} 34. Rf2 {[%emt 0:00:21]} Rf8 {[%emt 0:05:09]} 35. Ne3 {[%emt 0:00:27]} Kh8 {[%emt 0:00:48]} 36. Bh1 {[%emt 0:01:05]} ({White should play} 36. a4 $15) 36... Rfg8 $17 {[%emt 0:00:11]} 37. Nf1 {[%emt 0:00:14]} Rh7 {[%emt 0:02:45]} 38. Bg2 {[%emt 0:00:02]} Bg4 {[%emt 0:03:10]} (38... Rg6 $142 {aiming for ...Rgh6.} 39. Ne3 Bxh3 40. Bxh3 Rgh6) 39. Qe3 {[%emt 0:00:50]} (39. Qf6+ $142 Qxf6 40. Rxf6) 39... Rg6 {[%emt 0:00:12]} 40. Qf4 {[%emt 0:00:54] [#]} (40. Rf4 $17 {might work better.}) 40... Bxh3 $1 $19 {[%emt 0:01:26]} 41. Bxh3 {[%emt 0:30:06]} Rgh6 {[%emt 0:31:17]} 42. Qg4 {[%emt 0:00:00]} Rxh3+ {[%emt 0:00:00]} 43. Kg2 {[%emt 0:00:00]} Qe6 {[%emt 0:00:00]} 44. Qxe6 {[%emt 0:00:00]} fxe6 {[%emt 0:00:00]} 45. Rf8+ {[%emt 0:00:00]} Kg7 {[%emt 0:00:00]} 46. Rd8 {[%emt 0:00:00]} Kf6 {[%emt 0:00:00]} 47. Rxd6 {[%emt 0:00:00]} Ke5 {[%emt 0:00:00]} 48. c5 {[%emt 0:00:00]} Kxe4 {[%emt 0:00:00]} 49. Nd2+ {[%emt 0:00:00]} Kf5 {[%emt 0:00:00]} 50. Nf3 {[%emt 0:00:00]} R3h6 {[%emt 0:00:00]} 51. Rd4 {[%emt 0:00:00]} Kf6 {[%emt 0:00:00]} 52. g4 {[%emt 0:00:00]} Rh1 {[%emt 0:00:00]} 53. Rf4+ {[%emt 0:00:00]} Ke7 {[%emt 0:00:00]} 54. Ng5 {[%emt 0:06:38]} R7h2+ {[%emt 0:00:00]} 55. Kg3 {[%emt 0:00:01]} Re2 {[%emt 0:00:00]} 56. Rf7+ {[%emt 0:00:08]} Ke8 {[%emt 0:00:00]} 57. Rxb7 {[%emt 0:00:27]} e5 {[%emt 0:00:00]} (57... Rxa2 58. Nxe6 Rb1 59. Kf4 $17) 58. Nf7 {[%emt 0:01:33] [#]} Re3+ $1 {[%emt 0:00:00]} (58... Rxa2 59. Nxe5 Rc1 60. Rb8+ Ke7 61. Nxc6+ Kd7 62. Ne5+ Ke6 63. Re8+ Kd5 64. g5 $15) 59. Kf2 {[%emt 0:00:13]} Rc3 {[%emt 0:00:00]} 60. Nd6+ {[%emt 0:00:38]} Kf8 {[%emt 0:00:00]} 61. Kg2 {[%emt 0:00:33]} (61. Rf7+ $142 Kg8 62. Rf3 Rxc5 63. Kg3) 61... Rch3 $19 {[%emt 0:00:00]} 62. Rf7+ {[%emt 0:00:44]} Kg8 {[%emt 0:11:02]} 63. Rf2 {[%emt 0:00:28]} Kg7 {[%emt 0:00:00]} 64. Rf5 $2 {[%emt 0:00:29]} (64. Nc4 a4 (64... e4 $2 65. Nd6 $19) 65. bxa4 R1h2+ (65... e4 66. Nd6 $17) 66. Kg1 Rxf2 (66... Rh1+ $2 67. Kg2 $19) 67. Kxf2) 64... R1h2+ $19 {[%emt 0:01:00]} 65. Kg1 Re2 {[%emt 0:00:00]} 66. Nc4 {[%emt 0:00:52]} Rc3 {[%emt 0:00:00]} 67. Nxa5 $2 {[%emt 0:00:33]} (67. Rf2 Re1+ 68. Rf1) 67... Rc1+ $19 {[%emt 0:00:00]} 68. Rf1 {[%emt 0:00:06]} Rxc5 {[%emt 0:00:00]} 69. Nc4 {[%emt 0:00:38]} Rxa2 {[%emt 0:00:00]} 70. Rf5 {[%emt 0:00:44]} Rd5 {[%emt 0:00:00]} 71. Nxe5 {[%emt 0:00:08]} (71. Rf1 $142) 71... c5 $19 {[%emt 0:00:00]} 72. Rf7+ {[%emt 0:00:55]} Kg8 {[%emt 0:00:00]} 73. Rf5 {[%emt 0:00:02]} Rb2 {[%emt 0:01:13]} 74. Nc4 {[%emt 0:00:23]} (74. Rg5+ $142 Kh7 75. Rh5+ Kg7 76. Rf5) 74... Rd1+ $19 {[%emt 0:00:05]} (74... Rxb3 75. Rxd5 Rg3+ 76. Kf2 Rxg4 77. Ne5 $14 (77. Rxc5 Kf8 $14)) 75. Rf1 {[%emt 0:00:04]} Rxf1+ {[%emt 0:00:02]} ({Inferior is} 75... Rxb3 76. Rxd1 Rg3+ 77. Kf2 Rxg4 78. Rc1 $14) 76. Kxf1 {[%emt 0:00:03]} Rxb3 {[%emt 0:00:04]} 77. Nd2 {[%emt 0:01:32]} Rb4 {[%emt 0:02:34]} 78. Ke2 {[%emt 0:00:00]} Rxg4 {[%emt 0:00:24]} 79. Kf3 {[%emt 0:01:32]} Rh4 {[%emt 0:01:07]} 80. Ne4 {[%emt 0:00:19]} c4 {[%emt 0:00:28]} 81. Nd6 {[%emt 0:00:17]} c3 {[%emt 0:00:15]} 0-1